[Event "Titled Tuesday Blitz December 06 Late 2022"]
[White "Yurasova, Daria"]
[Black "Timmermans, Mark"]
[WhiteFideId "34146919"]
[BlackFideId "1026399"]
[WhiteElo "2098"]
[BlackElo "2460"]
[Result "0-1"]
[Round "08"]
[TimeControl "180+1"]
[Date "2022.12.06"]
[WhiteClock "0:00:08"]
[BlackClock "0:00:41"]

1. d4 {[%clk 0:03:00]}  Nf6 {[%clk 0:02:59]} 2. c4 {[%clk 0:03:01]}  e6 {[%clk 0:02:58]} 3. Nc3 {[%clk 0:03:01]}  Bb4 {[%clk 0:02:58]} 4. Qc2 {[%clk 0:03:01]}  O-O {[%clk 0:02:58]} 5. Nf3 {[%clk 0:02:58]}  b5 {[%clk 0:02:51]} 6. e3 {[%clk 0:02:58]}  bxc4 {[%clk 0:02:45]} 7. Bxc4 {[%clk 0:02:58]}  Bb7 {[%clk 0:02:41]} 8. Be2 {[%clk 0:02:54]}  Be4 {[%clk 0:02:37]} 9. Qd1 {[%clk 0:02:53]}  c5 {[%clk 0:02:31]} 10. O-O {[%clk 0:02:53]}  Bxc3 {[%clk 0:02:30]} 11. bxc3 {[%clk 0:02:53]}  Qa5 {[%clk 0:02:25]} 12. a4 {[%clk 0:02:44]}  Rc8 {[%clk 0:02:16]} 13. Ba3 {[%clk 0:02:42]}  cxd4 {[%clk 0:02:01]} 14. cxd4 {[%clk 0:02:42]}  Nd5 {[%clk 0:02:01]} 15. Bd3 {[%clk 0:01:51]}  Bxd3 {[%clk 0:01:49]} 16. Qxd3 {[%clk 0:01:49]}  Nc6 {[%clk 0:01:50]} 17. Qe4 {[%clk 0:01:35]}  f5 {[%clk 0:01:44]} 18. Qh4 {[%clk 0:01:33]}  h6 {[%clk 0:01:41]} 19. Qg3 {[%clk 0:01:33]}  Nc3 {[%clk 0:01:35]} 20. Kh1 {[%clk 0:01:31]}  Ne4 {[%clk 0:01:32]} 21. Qh4 {[%clk 0:01:26]}  Kh7 {[%clk 0:01:06]} 22. Qh5 {[%clk 0:01:16]}  Rab8 {[%clk 0:01:04]} 23. Qf7 {[%clk 0:01:04]}  Qd8 {[%clk 0:01:04]} 24. Ne5 {[%clk 0:00:52]}  Nxe5 {[%clk 0:01:01]} 25. dxe5 {[%clk 0:00:53]}  Rc2 {[%clk 0:01:01]} 26. Kg1 {[%clk 0:00:45]}  Qg5 {[%clk 0:00:57]} 27. Rae1 {[%clk 0:00:19]}  Nd2 {[%clk 0:00:48]} 28. Be7 {[%clk 0:00:18]}  Qg6 {[%clk 0:00:45]} 29. Qxg6+ {[%clk 0:00:18]}  Kxg6 {[%clk 0:00:46]} 30. Bd6 {[%clk 0:00:18]}  Rbb2 {[%clk 0:00:43]} 31. g3 {[%clk 0:00:09]}  Nf3+ {[%clk 0:00:40]} 32. Kg2 {[%clk 0:00:08]}  Nxe1+ {[%clk 0:00:41]} 0-1


[Site "https://www.chess.com"]

[Event "Titled Tuesday Blitz December 06 Late 2022"]
[White "Arbunic Castro, Giovanna"]
[Black "Liu, Kelsey"]
[WhiteFideId "3400549"]
[BlackFideId "30944481"]
[WhiteElo "1941"]
[BlackElo "2261"]
[Result "0-1"]
[Round "09"]
[TimeControl "180+1"]
[Date "2022.12.07"]
[WhiteClock "0:00:02"]
[BlackClock "0:00:16"]

1. e4 {[%clk 0:03:00]}  c5 {[%clk 0:02:54]} 2. g3 {[%clk 0:02:59]}  d5 {[%clk 0:02:48]} 3. exd5 {[%clk 0:02:58]}  Qxd5 {[%clk 0:02:48]} 4. Nf3 {[%clk 0:02:58]}  Nc6 {[%clk 0:02:47]} 5. Bg2 {[%clk 0:02:57]}  Nf6 {[%clk 0:02:43]} 6. O-O {[%clk 0:02:56]}  g6 {[%clk 0:02:40]} 7. h3 {[%clk 0:02:54]}  Bg7 {[%clk 0:02:39]} 8. Re1 {[%clk 0:02:53]}  O-O {[%clk 0:02:38]} 9. Nc3 {[%clk 0:02:52]}  Qd6 {[%clk 0:02:33]} 10. d3 {[%clk 0:02:51]}  e5 {[%clk 0:02:30]} 11. Ne4 {[%clk 0:02:37]}  Nxe4 {[%clk 0:02:28]} 12. dxe4 {[%clk 0:02:35]}  Qc7 {[%clk 0:02:03]} 13. Be3 {[%clk 0:02:25]}  b6 {[%clk 0:02:03]} 14. c3 {[%clk 0:02:23]}  Ba6 {[%clk 0:01:58]} 15. Qc2 {[%clk 0:02:16]}  Rad8 {[%clk 0:01:55]} 16. Rad1 {[%clk 0:02:13]}  f5 {[%clk 0:01:17]} 17. Ng5 {[%clk 0:02:06]}  Qe7 {[%clk 0:01:13]} 18. Qb3+ {[%clk 0:01:42]}  c4 {[%clk 0:01:11]} 19. Qa4 {[%clk 0:01:41]}  Nb8 {[%clk 0:01:05]} 20. Rd5 {[%clk 0:01:19]}  Rxd5 {[%clk 0:00:56]} 21. exd5 {[%clk 0:01:17]}  f4 {[%clk 0:00:56]} 22. gxf4 {[%clk 0:01:01]}  exf4 {[%clk 0:00:57]} 23. Bd2 {[%clk 0:00:58]}  Qxg5 {[%clk 0:00:57]} 24. d6 {[%clk 0:00:51]}  Bc8 {[%clk 0:00:29]} 25. Qxc4+ {[%clk 0:00:47]}  Kh8 {[%clk 0:00:29]} 26. Qc7 {[%clk 0:00:20]}  Bxh3 {[%clk 0:00:27]} 27. Kf1 {[%clk 0:00:06]}  Bxg2+ {[%clk 0:00:24]} 28. Ke2 {[%clk 0:00:05]}  Qg4+ {[%clk 0:00:24]} 29. Kd3 {[%clk 0:00:04]}  Qf5+ {[%clk 0:00:24]} 30. Kc4 {[%clk 0:00:03]}  Qd5+ {[%clk 0:00:22]} 31. Kb4 {[%clk 0:00:02]}  Qa5+ {[%clk 0:00:16]} 0-1


[Site "https://www.chess.com"]

[Event "Titled Tuesday Blitz December 06 Late 2022"]
[White "Ardila, Oscar Humberto"]
[Black "Gasparyan, David"]
[WhiteFideId "4404742"]
[BlackFideId "13311980"]
[WhiteElo "1961"]
[BlackElo "2386"]
[Result "0-1"]
[Round "09"]
[TimeControl "180+1"]
[Date "2022.12.07"]
[WhiteClock "0:00:01"]
[BlackClock "0:00:08"]

1. d4 {[%clk 0:02:59]}  d6 {[%clk 0:02:43]} 2. Nf3 {[%clk 0:02:58]}  Bg4 {[%clk 0:02:42]} 3. e3 {[%clk 0:02:56]}  Nd7 {[%clk 0:02:37]} 4. h3 {[%clk 0:02:56]}  Bh5 {[%clk 0:02:37]} 5. g4 {[%clk 0:02:56]}  Bg6 {[%clk 0:02:37]} 6. Bg2 {[%clk 0:02:57]}  c6 {[%clk 0:02:34]} 7. Nbd2 {[%clk 0:02:55]}  e5 {[%clk 0:02:34]} 8. dxe5 {[%clk 0:02:55]}  dxe5 {[%clk 0:02:35]} 9. c3 {[%clk 0:02:53]}  Bd3 {[%clk 0:02:34]} 10. Bf1 {[%clk 0:02:47]}  Bxf1 {[%clk 0:02:24]} 11. Kxf1 {[%clk 0:02:47]}  Ngf6 {[%clk 0:02:24]} 12. Kg2 {[%clk 0:02:46]}  h5 {[%clk 0:02:19]} 13. g5 {[%clk 0:02:43]}  Nd5 {[%clk 0:02:18]} 14. h4 {[%clk 0:02:41]}  Be7 {[%clk 0:02:10]} 15. c4 {[%clk 0:02:40]}  Nc7 {[%clk 0:02:07]} 16. b3 {[%clk 0:02:38]}  Ne6 {[%clk 0:02:03]} 17. Bb2 {[%clk 0:02:36]}  Qc7 {[%clk 0:02:02]} 18. Qc2 {[%clk 0:02:35]}  O-O-O {[%clk 0:01:56]} 19. Ne4 {[%clk 0:02:34]}  f5 {[%clk 0:01:54]} 20. gxf6 {[%clk 0:02:33]}  gxf6 {[%clk 0:01:53]} 21. Rhd1 {[%clk 0:02:08]}  Rhg8+ {[%clk 0:01:51]} 22. Kf1 {[%clk 0:02:09]}  Rg4 {[%clk 0:01:48]} 23. Ke2 {[%clk 0:02:05]}  Rdg8 {[%clk 0:01:41]} 24. Qd3 {[%clk 0:01:37]}  Ndc5 {[%clk 0:01:02]} 25. Nxc5 {[%clk 0:01:35]}  Nxc5 {[%clk 0:01:03]} 26. Qf5+ {[%clk 0:01:35]}  Kb8 {[%clk 0:01:03]} 27. b4 {[%clk 0:01:28]}  Na4 {[%clk 0:01:00]} 28. Rd7 {[%clk 0:01:23]}  Qc8 {[%clk 0:00:55]} 29. Qe6 {[%clk 0:01:15]}  Bxb4 {[%clk 0:00:45]} 30. Nxe5 {[%clk 0:01:05]}  Nc5 {[%clk 0:00:45]} 31. Qf7 {[%clk 0:00:52]}  fxe5 {[%clk 0:00:33]} 32. Bxe5+ {[%clk 0:00:50]}  Ka8 {[%clk 0:00:34]} 33. Rc7 {[%clk 0:00:41]}  Qe8 {[%clk 0:00:30]} 34. Qxe8+ {[%clk 0:00:37]}  Rxe8 {[%clk 0:00:29]} 35. Bg3 {[%clk 0:00:31]}  Ne4 {[%clk 0:00:19]} 36. Kf3 {[%clk 0:00:31]}  Nxg3 {[%clk 0:00:16]} 37. fxg3 {[%clk 0:00:30]}  Bd6 {[%clk 0:00:16]} 38. Rh7 {[%clk 0:00:29]}  Rxg3+ {[%clk 0:00:16]} 39. Kf2 {[%clk 0:00:29]}  Rgxe3 {[%clk 0:00:14]} 40. Rd1 {[%clk 0:00:25]}  Bc5 {[%clk 0:00:11]} 41. Rdd7 {[%clk 0:00:25]}  R3e7+ {[%clk 0:00:10]} 42. Kf3 {[%clk 0:00:24]}  Rxd7 {[%clk 0:00:10]} 43. Rxd7 {[%clk 0:00:24]}  a5 {[%clk 0:00:11]} 44. Rh7 {[%clk 0:00:23]}  Re5 {[%clk 0:00:11]} 45. Kf4 {[%clk 0:00:21]}  Bd6 {[%clk 0:00:11]} 46. Kf3 {[%clk 0:00:16]}  Rf5+ {[%clk 0:00:11]} 47. Ke3 {[%clk 0:00:15]}  Ka7 {[%clk 0:00:09]} 48. a4 {[%clk 0:00:14]}  Kb6 {[%clk 0:00:09]} 49. Kd3 {[%clk 0:00:13]}  Kc5 {[%clk 0:00:08]} 50. Rxb7 {[%clk 0:00:12]}  Rf3+ {[%clk 0:00:09]} 51. Ke4 {[%clk 0:00:11]}  Rf4+ {[%clk 0:00:09]} 52. Kd3 {[%clk 0:00:11]}  Rd4+ {[%clk 0:00:08]} 53. Ke3 {[%clk 0:00:10]}  Rxc4 {[%clk 0:00:08]} 54. Ra7 {[%clk 0:00:10]}  Kb4 {[%clk 0:00:08]} 55. Rh7 {[%clk 0:00:09]}  Bc5+ {[%clk 0:00:08]} 56. Kd3 {[%clk 0:00:09]}  Rxh4 {[%clk 0:00:09]} 57. Rh6 {[%clk 0:00:09]}  Rh3+ {[%clk 0:00:09]} 58. Ke4 {[%clk 0:00:08]}  Re3+ {[%clk 0:00:09]} 59. Kf4 {[%clk 0:00:08]}  Rc3 {[%clk 0:00:09]} 60. Ke4 {[%clk 0:00:07]}  h4 {[%clk 0:00:08]} 61. Rxc6 {[%clk 0:00:07]}  h3 {[%clk 0:00:08]} 62. Rh6 {[%clk 0:00:07]}  Kxa4 {[%clk 0:00:08]} 63. Kd5 {[%clk 0:00:07]}  Bb4 {[%clk 0:00:07]} 64. Rh4 {[%clk 0:00:07]}  Ka3 {[%clk 0:00:08]} 65. Rh7 {[%clk 0:00:03]}  a4 {[%clk 0:00:08]} 66. Rh4 {[%clk 0:00:03]}  Kb3 {[%clk 0:00:08]} 67. Rh7 {[%clk 0:00:01]}  a3 {[%clk 0:00:08]} 0-1


[Site "https://www.chess.com"]

[Event "Titled Tuesday Blitz December 06 Late 2022"]
[White "Bongo Akanga Ndjila, Barthelemy"]
[Black "Polster, Christian"]
[WhiteFideId "10609431"]
[BlackFideId "12965081"]
[WhiteElo "1768"]
[BlackElo "2195"]
[Result "0-1"]
[Round "09"]
[TimeControl "180+1"]
[Date "2022.12.07"]
[WhiteClock "0:01:02"]
[BlackClock "0:00:39"]

1. d4 {[%clk 0:02:49]}  Nf6 {[%clk 0:02:55]} 2. c4 {[%clk 0:02:49]}  c5 {[%clk 0:02:51]} 3. d5 {[%clk 0:02:49]}  b5 {[%clk 0:02:51]} 4. cxb5 {[%clk 0:02:49]}  a6 {[%clk 0:02:50]} 5. bxa6 {[%clk 0:02:50]}  g6 {[%clk 0:02:50]} 6. Nc3 {[%clk 0:02:50]}  Bg7 {[%clk 0:02:49]} 7. Nf3 {[%clk 0:02:49]}  O-O {[%clk 0:02:48]} 8. a4 {[%clk 0:02:46]}  Qa5 {[%clk 0:02:45]} 9. Bd2 {[%clk 0:02:43]}  Bxa6 {[%clk 0:02:38]} 10. Nb5 {[%clk 0:02:38]}  Qb6 {[%clk 0:02:34]} 11. Bc3 {[%clk 0:02:14]}  Bxb5 {[%clk 0:02:27]} 12. axb5 {[%clk 0:02:13]}  Rxa1 {[%clk 0:02:26]} 13. Qxa1 {[%clk 0:02:12]}  Qxb5 {[%clk 0:02:25]} 14. e4 {[%clk 0:02:11]}  Qb7 {[%clk 0:02:15]} 15. Nd2 {[%clk 0:02:08]}  d6 {[%clk 0:02:11]} 16. f3 {[%clk 0:02:08]}  Nbd7 {[%clk 0:02:08]} 17. Be2 {[%clk 0:02:04]}  Ra8 {[%clk 0:01:40]} 18. Qc1 {[%clk 0:01:59]}  Nb6 {[%clk 0:01:39]} 19. O-O {[%clk 0:01:57]}  Na4 {[%clk 0:01:36]} 20. Nc4 {[%clk 0:01:48]}  Nxc3 {[%clk 0:01:30]} 21. bxc3 {[%clk 0:01:48]}  Ra2 {[%clk 0:01:19]} 22. Bd3 {[%clk 0:01:43]}  Qb3 {[%clk 0:01:10]} 23. Rf2 {[%clk 0:01:29]}  Rxf2 {[%clk 0:01:02]} 24. Kxf2 {[%clk 0:01:28]}  Nd7 {[%clk 0:01:01]} 25. f4 {[%clk 0:01:10]}  Bxc3 {[%clk 0:00:56]} 26. e5 {[%clk 0:01:09]}  Bd4+ {[%clk 0:00:54]} 27. Kf3 {[%clk 0:01:08]}  Qxd3+ {[%clk 0:00:53]} 28. Kg4 {[%clk 0:01:07]}  Qe2+ {[%clk 0:00:46]} 29. Kh3 {[%clk 0:01:05]}  Bf2 {[%clk 0:00:40]} 30. exd6 {[%clk 0:01:02]}  Qh5# {[%clk 0:00:39]} 0-1


[Site "https://www.chess.com"]

[Event "Titled Tuesday Blitz December 06 Late 2022"]
[White "Bryant, Todd"]
[Black "Kim, Sergey"]
[WhiteFideId "2031299"]
[BlackFideId "13700570"]
[WhiteElo "2327"]
[BlackElo "2571"]
[Result "0-1"]
[Round "09"]
[TimeControl "180+1"]
[Date "2022.12.07"]
[WhiteClock "0:00:06"]
[BlackClock "0:01:10"]

1. e4 {[%clk 0:02:53]}  e5 {[%clk 0:02:58]} 2. f4 {[%clk 0:02:53]}  Bc5 {[%clk 0:02:57]} 3. Nf3 {[%clk 0:02:53]}  d6 {[%clk 0:02:57]} 4. Nc3 {[%clk 0:02:49]}  Nc6 {[%clk 0:02:58]} 5. Bc4 {[%clk 0:02:48]}  Nf6 {[%clk 0:02:54]} 6. d3 {[%clk 0:02:48]}  Bg4 {[%clk 0:02:54]} 7. h3 {[%clk 0:02:43]}  Bxf3 {[%clk 0:02:53]} 8. Qxf3 {[%clk 0:02:44]}  Nd4 {[%clk 0:02:53]} 9. Qg3 {[%clk 0:02:43]}  O-O {[%clk 0:02:51]} 10. Bb3 {[%clk 0:02:27]}  Nh5 {[%clk 0:02:47]} 11. Qg4 {[%clk 0:02:23]}  Nxf4 {[%clk 0:02:47]} 12. Bxf4 {[%clk 0:02:20]}  exf4 {[%clk 0:02:47]} 13. Qxf4 {[%clk 0:02:18]}  c6 {[%clk 0:02:46]} 14. Rf1 {[%clk 0:02:03]}  Qe7 {[%clk 0:02:44]} 15. Ne2 {[%clk 0:01:50]}  a5 {[%clk 0:02:34]} 16. Nxd4 {[%clk 0:01:45]}  Bxd4 {[%clk 0:02:34]} 17. c3 {[%clk 0:01:42]}  Be5 {[%clk 0:02:27]} 18. Qf2 {[%clk 0:01:13]}  a4 {[%clk 0:02:26]} 19. Bd1 {[%clk 0:00:50]}  a3 {[%clk 0:02:24]} 20. d4 {[%clk 0:00:50]}  axb2 {[%clk 0:02:18]} 21. Rb1 {[%clk 0:00:46]}  Bf6 {[%clk 0:02:13]} 22. Bf3 {[%clk 0:00:35]}  Rxa2 {[%clk 0:02:08]} 23. Rxb2 {[%clk 0:00:22]}  Bh4 {[%clk 0:02:02]} 24. g3 {[%clk 0:00:19]}  Bxg3 {[%clk 0:02:00]} 25. Qxg3 {[%clk 0:00:19]}  Rxb2 {[%clk 0:02:00]} 26. Rg1 {[%clk 0:00:19]}  g6 {[%clk 0:01:56]} 27. h4 {[%clk 0:00:16]}  Rb1+ {[%clk 0:01:55]} 28. Kd2 {[%clk 0:00:16]}  Rxg1 {[%clk 0:01:54]} 29. Qxg1 {[%clk 0:00:17]}  Qxh4 {[%clk 0:01:53]} 30. Qe3 {[%clk 0:00:17]}  Ra8 {[%clk 0:01:50]} 31. Kd3 {[%clk 0:00:17]}  Qh3 {[%clk 0:01:43]} 32. e5 {[%clk 0:00:17]}  d5 {[%clk 0:01:41]} 33. Kc2 {[%clk 0:00:14]}  Qh2+ {[%clk 0:01:37]} 34. Be2 {[%clk 0:00:13]}  Ra2+ {[%clk 0:01:35]} 35. Kd3 {[%clk 0:00:12]}  Qg2 {[%clk 0:01:25]} 36. e6 {[%clk 0:00:12]}  Qe4+ {[%clk 0:01:23]} 37. Qxe4 {[%clk 0:00:11]}  dxe4+ {[%clk 0:01:24]} 38. Ke3 {[%clk 0:00:11]}  fxe6 {[%clk 0:01:23]} 39. Bc4 {[%clk 0:00:10]}  Rc2 {[%clk 0:01:22]} 40. Bxe6+ {[%clk 0:00:10]}  Kg7 {[%clk 0:01:22]} 41. c4 {[%clk 0:00:10]}  Kf6 {[%clk 0:01:20]} 42. Bg8 {[%clk 0:00:09]}  h5 {[%clk 0:01:20]} 43. Kxe4 {[%clk 0:00:10]}  h4 {[%clk 0:01:20]} 44. d5 {[%clk 0:00:11]}  c5 {[%clk 0:01:16]} 45. d6 {[%clk 0:00:10]}  Rd2 {[%clk 0:01:16]} 46. Bd5 {[%clk 0:00:10]}  h3 {[%clk 0:01:15]} 47. Kf4 {[%clk 0:00:06]}  h2 {[%clk 0:01:13]} 48. Bxb7 {[%clk 0:00:05]}  Rxd6 {[%clk 0:01:11]} 49. Kg3 {[%clk 0:00:06]}  Rd4 {[%clk 0:01:10]} 50. Kxh2 {[%clk 0:00:05]}  Rxc4 {[%clk 0:01:10]} 51. Kg3 {[%clk 0:00:06]}  Rd4 {[%clk 0:01:10]} 52. Kf3 {[%clk 0:00:06]}  c4 {[%clk 0:01:10]} 53. Ke3 {[%clk 0:00:07]}  Rd6 {[%clk 0:01:10]} 54. Ke4 {[%clk 0:00:06]}  c3 {[%clk 0:01:10]} 0-1


[Site "https://www.chess.com"]

[Event "Titled Tuesday Blitz December 06 Late 2022"]
[White "Clawitter, Craig"]
[Black "Hernandez Jimenez, Alexander Andres"]
[WhiteFideId "2023105"]
[BlackFideId "3900452"]
[WhiteElo "2197"]
[BlackElo "2098"]
[Result "1/2-1/2"]
[Round "09"]
[TimeControl "180+1"]
[Date "2022.12.07"]
[WhiteClock "0:00:06"]
[BlackClock "0:00:11"]

1. e4 {[%clk 0:03:00]}  c5 {[%clk 0:02:53]} 2. Nf3 {[%clk 0:03:00]}  d6 {[%clk 0:02:53]} 3. d4 {[%clk 0:03:00]}  cxd4 {[%clk 0:02:53]} 4. Nxd4 {[%clk 0:03:01]}  Nf6 {[%clk 0:02:52]} 5. Nc3 {[%clk 0:03:02]}  a6 {[%clk 0:02:52]} 6. Be3 {[%clk 0:03:01]}  e5 {[%clk 0:02:52]} 7. Nb3 {[%clk 0:03:02]}  Be6 {[%clk 0:02:52]} 8. f3 {[%clk 0:03:02]}  Nbd7 {[%clk 0:02:52]} 9. Qd2 {[%clk 0:03:02]}  h5 {[%clk 0:02:53]} 10. Be2 {[%clk 0:02:54]}  Rc8 {[%clk 0:02:52]} 11. Nd5 {[%clk 0:02:53]}  Nxd5 {[%clk 0:02:50]} 12. exd5 {[%clk 0:02:54]}  Bf5 {[%clk 0:02:50]} 13. c4 {[%clk 0:02:51]}  Be7 {[%clk 0:02:50]} 14. Na5 {[%clk 0:02:47]}  Qc7 {[%clk 0:02:47]} 15. b4 {[%clk 0:02:37]}  h4 {[%clk 0:02:43]} 16. h3 {[%clk 0:02:35]}  Bg6 {[%clk 0:02:38]} 17. O-O {[%clk 0:02:32]}  f5 {[%clk 0:02:36]} 18. f4 {[%clk 0:02:25]}  e4 {[%clk 0:02:35]} 19. Nb3 {[%clk 0:01:56]}  Bh5 {[%clk 0:02:29]} 20. Bxh5+ {[%clk 0:01:42]}  Rxh5 {[%clk 0:02:29]} 21. Rac1 {[%clk 0:01:42]}  Bf6 {[%clk 0:02:17]} 22. Nd4 {[%clk 0:01:29]}  Nf8 {[%clk 0:02:16]} 23. c5 {[%clk 0:01:21]}  Qf7 {[%clk 0:02:03]} 24. cxd6 {[%clk 0:00:34]}  Rxc1 {[%clk 0:02:02]} 25. Qxc1 {[%clk 0:00:23]}  Qxd5 {[%clk 0:02:02]} 26. Qc8+ {[%clk 0:00:20]}  Kf7 {[%clk 0:01:57]} 27. Rc1 {[%clk 0:00:16]}  Bxd4 {[%clk 0:01:52]} 28. Rc7+ {[%clk 0:00:16]}  Kg6 {[%clk 0:01:52]} 29. Bxd4 {[%clk 0:00:14]}  Qxd4+ {[%clk 0:01:52]} 30. Kh1 {[%clk 0:00:14]}  Qxd6 {[%clk 0:01:47]} 31. Qxb7 {[%clk 0:00:14]}  Ne6 {[%clk 0:01:20]} 32. Rc6 {[%clk 0:00:14]}  Qd5 {[%clk 0:00:32]} 33. Qc8 {[%clk 0:00:12]}  Kf6 {[%clk 0:00:23]} 34. Qf8+ {[%clk 0:00:10]}  Kg6 {[%clk 0:00:22]} 35. Qe8+ {[%clk 0:00:11]}  Kf6 {[%clk 0:00:17]} 36. Qf8+ {[%clk 0:00:10]}  Kg6 {[%clk 0:00:17]} 37. Qe8+ {[%clk 0:00:11]}  Kf6 {[%clk 0:00:11]} 38. Qf8+ {[%clk 0:00:06]} 1/2-1/2


[Site "https://www.chess.com"]

[Event "Titled Tuesday Blitz December 06 Late 2022"]
[White "Drozdowski, Kacper"]
[Black "Domingo Nunez, Ruben"]
[WhiteFideId "1136720"]
[BlackFideId "22245570"]
[WhiteElo "2486"]
[BlackElo "2406"]
[Result "1-0"]
[Round "09"]
[TimeControl "180+1"]
[Date "2022.12.06"]
[WhiteClock "0:00:12"]
[BlackClock "0:00:42"]

1. e4 {[%clk 0:03:00]}  c6 {[%clk 0:02:59]} 2. d4 {[%clk 0:03:00]}  g6 {[%clk 0:02:59]} 3. Nc3 {[%clk 0:03:00]}  Bg7 {[%clk 0:03:00]} 4. f4 {[%clk 0:03:00]}  d5 {[%clk 0:03:01]} 5. e5 {[%clk 0:03:00]}  Nh6 {[%clk 0:03:01]} 6. Nf3 {[%clk 0:03:00]}  f6 {[%clk 0:03:02]} 7. Bd3 {[%clk 0:02:56]}  O-O {[%clk 0:03:01]} 8. O-O {[%clk 0:02:55]}  Bg4 {[%clk 0:03:02]} 9. Be3 {[%clk 0:02:48]}  fxe5 {[%clk 0:02:42]} 10. fxe5 {[%clk 0:02:46]}  Nf5 {[%clk 0:02:41]} 11. Qd2 {[%clk 0:02:38]}  Nxe3 {[%clk 0:02:33]} 12. Qxe3 {[%clk 0:02:38]}  e6 {[%clk 0:02:23]} 13. Ne2 {[%clk 0:02:33]}  Nd7 {[%clk 0:02:13]} 14. c3 {[%clk 0:02:29]}  Qe7 {[%clk 0:02:13]} 15. h3 {[%clk 0:02:24]}  Bf5 {[%clk 0:02:05]} 16. Bxf5 {[%clk 0:02:11]}  Rxf5 {[%clk 0:02:06]} 17. g4 {[%clk 0:02:01]}  Rf7 {[%clk 0:02:04]} 18. Nd2 {[%clk 0:01:53]}  Rxf1+ {[%clk 0:02:01]} 19. Rxf1 {[%clk 0:01:53]}  Qh4 {[%clk 0:02:02]} 20. Kg2 {[%clk 0:01:47]}  Rf8 {[%clk 0:01:44]} 21. Rxf8+ {[%clk 0:01:45]}  Nxf8 {[%clk 0:01:43]} 22. Nf3 {[%clk 0:01:45]}  Qd8 {[%clk 0:01:43]} 23. Qd3 {[%clk 0:01:34]}  Bh6 {[%clk 0:01:41]} 24. h4 {[%clk 0:01:31]}  Bg7 {[%clk 0:01:34]} 25. Nf4 {[%clk 0:01:29]}  Qe7 {[%clk 0:01:30]} 26. Kg3 {[%clk 0:01:28]}  Bh6 {[%clk 0:01:28]} 27. g5 {[%clk 0:01:28]}  Bg7 {[%clk 0:01:29]} 28. h5 {[%clk 0:01:26]}  gxh5 {[%clk 0:01:22]} 29. Nxh5 {[%clk 0:01:23]}  Qf7 {[%clk 0:01:22]} 30. Nf6+ {[%clk 0:01:21]}  Bxf6 {[%clk 0:01:09]} 31. gxf6 {[%clk 0:01:21]}  Qh5 {[%clk 0:01:06]} 32. Qe3 {[%clk 0:01:18]}  Ng6 {[%clk 0:01:04]} 33. Qg5 {[%clk 0:01:14]}  Qh1 {[%clk 0:01:00]} 34. Qg4 {[%clk 0:01:00]}  Kf7 {[%clk 0:00:47]} 35. Ng5+ {[%clk 0:01:00]}  Kf8 {[%clk 0:00:47]} 36. Nxe6+ {[%clk 0:00:54]}  Kg8 {[%clk 0:00:48]} 37. f7+ {[%clk 0:00:37]}  Kxf7 {[%clk 0:00:48]} 38. Ng5+ {[%clk 0:00:27]}  Ke8 {[%clk 0:00:48]} 39. Qc8+ {[%clk 0:00:17]}  Ke7 {[%clk 0:00:49]} 40. Qxb7+ {[%clk 0:00:15]}  Kd8 {[%clk 0:00:44]} 41. Nf7+ {[%clk 0:00:11]}  Ke8 {[%clk 0:00:44]} 42. Nd6+ {[%clk 0:00:12]}  Kd8 {[%clk 0:00:44]} 43. Qc8+ {[%clk 0:00:12]}  Ke7 {[%clk 0:00:45]} 44. Qc7+ {[%clk 0:00:12]}  Kf8 {[%clk 0:00:42]} 45. Qf7# {[%clk 0:00:12]} 1-0


[Site "https://www.chess.com"]

[Event "Titled Tuesday Blitz December 06 Late 2022"]
[White "Espinosa, Pedro"]
[Black "Hoffmann, Asa"]
[WhiteFideId "30921066"]
[BlackFideId "2001470"]
[WhiteElo "2016"]
[BlackElo "2117"]
[Result "1-0"]
[Round "09"]
[TimeControl "180+1"]
[Date "2022.12.07"]
[WhiteClock "0:00:07"]
[BlackClock "0:00:36"]

1. d4 {[%clk 0:02:53]}  Nf6 {[%clk 0:02:55]} 2. Nc3 {[%clk 0:02:52]}  d6 {[%clk 0:02:55]} 3. e4 {[%clk 0:02:51]}  c6 {[%clk 0:02:54]} 4. Nf3 {[%clk 0:02:51]}  Bg4 {[%clk 0:02:52]} 5. Be2 {[%clk 0:02:51]}  e6 {[%clk 0:02:52]} 6. O-O {[%clk 0:02:51]}  d5 {[%clk 0:02:52]} 7. exd5 {[%clk 0:02:50]}  cxd5 {[%clk 0:02:50]} 8. h3 {[%clk 0:02:49]}  Bh5 {[%clk 0:02:49]} 9. Bf4 {[%clk 0:02:49]}  Nc6 {[%clk 0:02:48]} 10. Nb5 {[%clk 0:02:49]}  Rc8 {[%clk 0:02:48]} 11. c4 {[%clk 0:02:41]}  a6 {[%clk 0:02:46]} 12. Nc3 {[%clk 0:02:41]}  Bxf3 {[%clk 0:02:43]} 13. Bxf3 {[%clk 0:02:41]}  dxc4 {[%clk 0:02:42]} 14. d5 {[%clk 0:02:41]}  exd5 {[%clk 0:02:22]} 15. Bxd5 {[%clk 0:02:20]}  Be7 {[%clk 0:02:19]} 16. Bxc4 {[%clk 0:02:13]}  O-O {[%clk 0:02:18]} 17. Nd5 {[%clk 0:01:59]}  Nxd5 {[%clk 0:02:09]} 18. Qxd5 {[%clk 0:01:58]}  Qxd5 {[%clk 0:02:08]} 19. Bxd5 {[%clk 0:01:59]}  Bf6 {[%clk 0:02:06]} 20. Rad1 {[%clk 0:01:53]}  Bxb2 {[%clk 0:02:00]} 21. Rb1 {[%clk 0:01:51]}  Be5 {[%clk 0:01:57]} 22. Bxe5 {[%clk 0:01:49]}  Nxe5 {[%clk 0:01:57]} 23. Bxb7 {[%clk 0:01:50]}  Rc2 {[%clk 0:01:54]} 24. a4 {[%clk 0:01:48]}  a5 {[%clk 0:01:53]} 25. Rb5 {[%clk 0:01:46]}  Nc4 {[%clk 0:01:51]} 26. Bd5 {[%clk 0:01:43]}  Rd8 {[%clk 0:01:44]} 27. Bxc4 {[%clk 0:01:42]}  Rxc4 {[%clk 0:01:44]} 28. Rxa5 {[%clk 0:01:42]}  g6 {[%clk 0:01:43]} 29. Ra1 {[%clk 0:01:39]}  Rd2 {[%clk 0:01:42]} 30. Rg5 {[%clk 0:01:23]}  Rcc2 {[%clk 0:01:34]} 31. f3 {[%clk 0:01:10]}  h6 {[%clk 0:01:32]} 32. Rg4 {[%clk 0:01:08]}  Kg7 {[%clk 0:01:32]} 33. a5 {[%clk 0:01:05]}  f5 {[%clk 0:01:29]} 34. Rg3 {[%clk 0:00:49]}  Ra2 {[%clk 0:01:26]} 35. Rb1 {[%clk 0:00:46]}  g5 {[%clk 0:01:17]} 36. f4 {[%clk 0:00:33]}  Kg6 {[%clk 0:01:16]} 37. Rb6+ {[%clk 0:00:26]}  Kh5 {[%clk 0:01:15]} 38. fxg5 {[%clk 0:00:26]}  hxg5 {[%clk 0:01:15]} 39. Rb5 {[%clk 0:00:16]}  Kh4 {[%clk 0:01:01]} 40. Kh2 {[%clk 0:00:12]}  Rd1 {[%clk 0:00:53]} 41. Rxf5 {[%clk 0:00:10]}  Raa1 {[%clk 0:00:50]} 42. Rg4+ {[%clk 0:00:10]}  Kh5 {[%clk 0:00:49]} 43. Rfxg5+ {[%clk 0:00:10]}  Kh6 {[%clk 0:00:49]} 44. Rg6+ {[%clk 0:00:07]}  Kh7 {[%clk 0:00:47]} 45. Kg3 {[%clk 0:00:06]}  Rxa5 {[%clk 0:00:42]} 46. R6g5 {[%clk 0:00:03]}  Rxg5 {[%clk 0:00:41]} 47. Rxg5 {[%clk 0:00:04]}  Rd4 {[%clk 0:00:41]} 48. Ra5 {[%clk 0:00:04]}  Kg6 {[%clk 0:00:40]} 49. h4 {[%clk 0:00:05]}  Rd3+ {[%clk 0:00:39]} 50. Kh2 {[%clk 0:00:05]}  Rd2 {[%clk 0:00:39]} 51. Kh3 {[%clk 0:00:05]}  Rd4 {[%clk 0:00:39]} 52. g3 {[%clk 0:00:06]}  Rc4 {[%clk 0:00:39]} 53. Ra6+ {[%clk 0:00:05]}  Kh5 {[%clk 0:00:38]} 54. g4+ {[%clk 0:00:05]}  Rxg4 {[%clk 0:00:36]} 55. Ra5+ {[%clk 0:00:06]}  Kh6 {[%clk 0:00:36]} 56. Kxg4 {[%clk 0:00:06]}  Kg6 {[%clk 0:00:36]} 57. h5+ {[%clk 0:00:07]}  Kh6 {[%clk 0:00:36]} 58. Ra6+ {[%clk 0:00:07]} 1-0


[Site "https://www.chess.com"]